Cogmind - Beta 13 @@@ ROGUE MODE // 2024.04.09 @ 11:58:45 Player: SovietPaperclip Result: Self-destructed Performance ------------- Evolutions (0) 0 Regions Visited (4) 800 Robots Destroyed (18) 90 Value Destroyed (334) 334 Prototype IDs (0) 0 Alien Tech Used (0) 0 Bonus (-109) -109 TOTAL SCORE: 1115 Bonus ------- Follower Combat Kills 60 Friendly Fire -169 Cogmind --------- Core Integrity 20/250 Matter 164/300 Energy 99/125 System Corruption 0% Temperature Warning (339) Movement Walking (260) Ox2 Location -9/Mines Parts ------- > --- POWER (1) -------- Light Ion Engine > --- PROPULSION (2) --- Aluminum Leg Improved Aluminum Leg > --- UTILITY (2) ------ High-capacity Storage Unit Targeting Computer > --- WEAPON (2) ------- Beamcaster Assault Rifle > --- INVENTORY (20) --- Light Nuclear Core Aluminum Leg Improved Heat Sink Medium Storage Unit High-capacity Matter Pod (200) Signal Interpreter Seismic Detector Tractor Beam Peak State ------------ > --- POWER ------------ Ion Engine > --- PROPULSION ------- Aluminum Leg Improved Aluminum Leg > --- UTILITY ---------- High-capacity Storage Unit Targeting Computer > --- WEAPON ----------- Beamcaster Assault Rifle > --- INVENTORY -------- Light Ion Engine Light Nuclear Core Aluminum Leg Improved Aluminum Leg Improved Heat Sink Medium Storage Unit High-capacity Matter Pod Signal Interpreter Seismic Detector Tractor Beam Grenade Launcher [Rating: 13] Favorites ----------- Power Ion Engine Engine Ion Engine Propulsion Aluminum Leg Leg Aluminum Leg Wheel Wheel Utility Tractor Beam Device Tractor Beam Storage High-capacity Storage Unit Processor Targeting Computer Weapon Assault Rifle Energy Gun Beamcaster Ballistic Gun Assault Rifle Launcher Grenade Launcher Build | -11 -10 -10 -10 -9 ------- Run | Yrd Mat Min Exi Min Slots Evolved . | . . . . . Power . | . . . . . Propulsion . | . . . . . Utility . | . . . . . Weapon . | . . . . . Parts Attached 26 | 6 3 8 1 8 Power 2 | 1 . . . 1 Engine 2 | 1 . . . 1 Core . | . . . . . Reactor . | . . . . . Propulsion 7 | 2 . 2 . 3 Treads . | . . . . . Leg 5 | 2 . . . 3 Wheel 2 | . . 2 . . Hover . | . . . . . Flight . | . . . . . Utility 5 | 1 3 . 1 . Device 1 | . 1 . . . Storage 3 | 1 2 . . . Processor 1 | . . . 1 . Hackware . | . . . . . Protection . | . . . . . Artifact . | . . . . . Weapon 12 | 2 . 6 . 4 Energy Gun 1 | . . . . 1 Energy Cannon . | . . . . . Ballistic Gun 6 | 2 . 3 . 1 Ballistic Cannon . | . . . . . Launcher 5 | . . 3 . 2 Special Weapon . | . . . . . Impact Weapon . | . . . . . Slashing Weapon . | . . . . . Piercing Weapon . | . . . . . Special Melee Weapon . | . . . . . Unidentified Prototypes . | . . . . . Parts Lost 7 | . . 3 . 4 Power 1 | . . . . 1 Propulsion 4 | . . 2 . 2 Utility . | . . . . . Weapon 2 | . . 1 . 1 Highest Loss Streak 3 | . . 2 . 3 To Critical Strikes . | . . . . . Average Slot Usage (%) 90 | . 98 90 71 98 Engine 14 | . 14 14 14 14 Leg 15 | . 28 12 . 27 Wheel 7 | . . 10 14 . Device 12 | . 12 14 13 . Storage 14 | . 14 14 14 14 Processor 1 | . . . . 14 Energy Gun 1 | . . . . 11 Ballistic Gun 21 | . 28 23 14 10 Naked Turns . | . . . . . Heaviest Build 53 | 14 50 51 48 53 Greatest Support 23 | 20 20 20 10 23 Greatest Overweight (x) 5 | . 2 5 4 4 Average Overweight (x) 2 | . . 2 4 2 Largest Inventory Capacity 20 | 8 20 20 20 20 Average Capacity 18 | 6 14 20 20 20 Most Carried 11 | 2 9 10 10 11 Average Carried 8 | . 5 9 10 10 Final Capacity 20 | 8 20 20 20 20 Final Carried 10 | 1 8 10 10 8 Class Distribution -------------------- 100% | Mutant Dominant Class ---------------- Mutant | -10/Materials Mutant | -10/Mines Mutant | -10/Exiles Mutant | -9/Mines Resources | -11 -10 -10 -10 -9 ----------- Run | Yrd Mat Min Exi Min Matter Collected 823 | 177 202 383 . 61 Remotely 390 | . 202 188 . . Salvage Created 432 | . 173 70 . 189 Parts 35 | . 10 12 . 13 Haulers Intercepted . | . . . . . Recyclers Shooed . | . . . . . Parts Field Recycled . | . . . . . Retrieved Matter . | . . . . . Parts Self-Destructed . | . . . . . Prevented . | . . . . . Kills | -11 -10 -10 -10 -9 ------- Run | Yrd Mat Min Exi Min Combat Hostiles Destroyed 26 | . 3 7 . 16 Guns 10 | . 3 3 . 4 AOE 16 | . . 4 . 12 Classes Destroyed 5 | . 2 1 . 2 Builder 4 | . 1 1 . 2 Swarmer 6 | . . 6 . . Grunt 5 | . 3 . . 2 Duelist 1 | . . . . 1 Assembled 13 | . . . . 13 Thug 1 | . . . . 1 Best Kill Streak 15 | . 3 3 . 15 Combat Bots Only 13 | . 2 3 . 13 Max Kills in Single Turn 4 | . 1 2 . 4 Gunslinging . | . . . . . Exploded 4 | . . 1 . 4 Melee . | . . . . . Uniques/NPCs Destroyed 1 | . . 1 . . YI-UF0 (-10/Mines) Combat | -11 -10 -10 -10 -9 -------- Run | Yrd Mat Min Exi Min Hostile Shots Fired 77 | . 24 27 . 26 Missed 23 | . 6 8 . 9 Damage Taken 958 | . 255 297 . 406 Core 230 | . 47 63 . 120 Absorbed by Shields . | . . . . . Core Remaining (%) 100 | 100 . . . . Volleys Fired 44 | . 14 17 . 13 Largest 2 | . 2 2 . 2 Hottest 105 | . 40 50 . 105 Shots Fired 78 | . 28 28 . 22 Gun 63 | . 28 22 . 13 Cannon . | . . . . . Launcher 15 | . . 6 . 9 Special . | . . . . . Kinetic 52 | . 28 22 . 2 Thermal 11 | . . . . 11 Explosive 15 | . . 6 . 9 Electromagnetic . | . . . . . Robot Hit Streak 8 | . 8 7 . 4 Robot Miss Streak 4 | . 4 4 . 3 Penetration Max . | . . . . . Secondary Targets . | . . . . . Shots Hit Robots 39 | . 16 13 . 10 Core Hits 49 | . 8 7 . 34 Critical Kills 3 | . 3 . . . Critical Parts Destroyed . | . . . . . Critical Strikes 6 | . 3 . . 3 Burn 3 | . . . . 3 Destroy 3 | . 3 . . . Melee Attacks . | . . . . . Impact . | . . . . . Slashing . | . . . . . Piercing . | . . . . . Sneak Attacks . | . . . . . Combat Hostiles . | . . . . . Follow-up Attacks . | . . . . . Damage Inflicted 1799 | . 204 474 . 1121 Guns 490 | . 204 145 . 141 Cannons . | . . . . . Explosions 1309 | . . 329 . 980 Melee . | . . . . . Ramming . | . . . . . Kinetic 364 | . 204 145 . 15 Thermal 126 | . . . . 126 Explosive 1309 | . . 329 . 980 Electromagnetic . | . . . . . Impact . | . . . . . Slashing . | . . . . . Piercing . | . . . . . Highest Corruption . | . . . . . Average Corruption . | . . . . . Corruption Purged . | . . . . . Corruption Blocked . | . . . . . Overload Shots . | . . . . . Overflow Damage 125 | . . 58 . 67 Projectiles . | . . . . . Explosions 125 | . . 58 . 67 Melee . | . . . . . Knockbacks . | . . . . . Impact . | . . . . . Kinetic . | . . . . . Secondary . | . . . . . Self-Inflicted Damage 116 | . . 23 . 93 Shots 4 | . . 1 . 3 Rammed . | . . . . . Targets Rammed . | . . . . . Kicked . | . . . . . Crushed . | . . . . . Highest Temperature 428 | . 2 . . 428 Average Temperature 209 | . 2 . . 247 Received Heat Transfer 162 | . 150 6 . 6 Effects 3 | . . . . 3 Energy Bleed 1 | . . . . 1 Matter Decay 1 | . . . . 1 Short Circuit 1 | . . . . 1 Siege Activations . | . . . . . Robots Corrupted . | . . . . . Combat Hostiles . | . . . . . Parts Fried . | . . . . . Impact Corruptions . | . . . . . Robots Melted . | . . . . . Combat Hostiles . | . . . . . Parts Melted . | . . . . . Heat Transferred 444 | . . . . 444 Parts Sabotaged . | . . . . . Parts Stolen . | . . . . . Parts Stripped . | . . . . . Power Chain Reactions . | . . . . . Alert | -11 -10 -10 -10 -9 ------- Run | Yrd Mat Min Exi Min Peak Influence 170 | . 101 170 . 107 Initial . | . . . . . Average 35 | . 28 33 . 76 Maximum Alert Level . | . . . . . Low Security (%) 100 | 100 100 100 . 100 Level 1 . | . . . . . Level 2 . | . . . . . Level 3 . | . . . . . Level 4 . | . . . . . Level 5 . | . . . . . High Security . | . . . . . Max Security . | . . . . . Squads Dispatched 1 | . . 1 . . Investigation . | . . . . . Extermination . | . . . . . Reinforcement . | . . . . . Assault 1 | . . 1 . . Garrison . | . . . . . Intercept . | . . . . . Searches Triggered . | . . . . . Construction Impeded . | . . . . . Haulers Reinforced . | . . . . . Active Scanning Responses . | . . . . . Cargo Convoy Interrupts . | . . . . . Stealth | -11 -10 -10 -10 -9 --------- Run | Yrd Mat Min Exi Min Distress Signals 1 | . 1 . . . Communications Jammed . | . . . . . Distress Signals . | . . . . . Times Spotted 37 | . 7 9 . 21 Peak Tracking Total 8 | . 3 3 . 8 Tactical Retreats 1 | . . . . 1 Traps | -11 -10 -10 -10 -9 ------- Run | Yrd Mat Min Exi Min Traps Triggered . | . . . . . Indirectly . | . . . . . Trap Hack Attempts . | . . . . . Triggered . | . . . . . Disarmed . | . . . . . Reprogrammed . | . . . . . Reused . | . . . . . Traps Extracted . | . . . . . Installed . | . . . . . Triggered . | . . . . . Machines | -11 -10 -10 -10 -9 ---------- Run | Yrd Mat Min Exi Min Machines Disabled 1 | . . . . 1 Max in Single Turn 1 | . . . . 1 Machines Repaired . | . . . . . Machines Dismantled . | . . . . . Machines Sabotaged . | . . . . . Overloaded Fab Kills . | . . . . . Hacking | -11 -10 -10 -10 -9 --------- Run | Yrd Mat Min Exi Min Machines Accessed 4 | . 3 . 1 . Terminals 2 | . 2 . . . Fabricators . | . . . . . Repair Stations . | . . . . . Recycling Units 1 | . 1 . . . Scanalyzers . | . . . . . Garrison Access . | . . . . . Total Hacks 6 | . 5 . 1 . Successful 2 | . 1 . 1 . Failed 4 | . 4 . . . Catastrophic . | . . . . . Database Lockouts . | . . . . . Manual . | . . . . . Terminals 2 | . 2 . . . Fabricators . | . . . . . Repair Stations . | . . . . . Recycling Units 3 | . 3 . . . Scanalyzers . | . . . . . Garrison Access . | . . . . . Terminal Hacks 2 | . 1 . 1 . Record 1 | . . . 1 . Zone Layout 1 | . 1 . . . Fabricator Hacks . | . . . . . Repair Station Hacks . | . . . . . Recycling Unit Hacks . | . . . . . Scanalyzer . | . . . . . Garrison Access Hacks . | . . . . . Unauthorized Hacks . | . . . . . Terminals . | . . . . . Fabricators . | . . . . . Repair Stations . | . . . . . Recycling Units . | . . . . . Scanalyzers . | . . . . . Garrison Access . | . . . . . Data Cores Recovered . | . . . . . Used . | . . . . . Hacking Detections 3 | . 3 . . . Full Trace Events . | . . . . . Feedback Events . | . . . . . Feedback Blocked . | . . . . . Robot Schematics Acquired . | . . . . . Robots Built . | . . . . . Authchips . | . . . . . Time . | . . . . . Total Robot Build Rating . | . . . . . Part Schematics Acquired . | . . . . . Parts Built . | . . . . . Authchips . | . . . . . Time . | . . . . . Total Part Build Rating . | . . . . . Parts Repaired . | . . . . . Time . | . . . . . Parts Recycled . | . . . . . Recycled Matter . | . . . . . Retrieved Matter . | . . . . . Retrieved Components . | . . . . . Parts Scanalyzed . | . . . . . Part Schematics Acquired . | . . . . . Parts Damaged . | . . . . . Bothacking | -11 -10 -10 -10 -9 ------------ Run | Yrd Mat Min Exi Min Used RIF Installer . | . . . . . Robots Hacked . | . . . . . Non-combat . | . . . . . Combat . | . . . . . Robot Hacks Applied . | . . . . . Relay Couplers Released . | . . . . . Fabnet Peak Effective % . | . . . . . Robots Rewired . | . . . . . Allies Hacked . | . . . . . Hacks Repelled . | . . . . . Allies | -11 -10 -10 -10 -9 -------- Run | Yrd Mat Min Exi Min Total Allies 4 | . . 4 . . Largest Group 4 | . . 4 1 . Highest-Rated Group 71 | . . 71 31 . Highest-Rated Ally 31 | . . 31 31 . Total Orders . | . . . . . Ally Attacks 12 | . . 11 . 1 Total Damage 169 | . . 147 . 22 Kills 2 | . . 2 . . Allies Corrupted . | . . . . . Allies Melted . | . . . . . Intel | -11 -10 -10 -10 -9 ------- Run | Yrd Mat Min Exi Min Robot Analysis Total . | . . . . . Derelict Logs Recovered 2 | . . 1 . 1 Drone Launches . | . . . . . Drone Recoveries . | . . . . . Exploration | -11 -10 -10 -10 -9 ------------- Run | Yrd Mat Min Exi Min Turns Passed 2257 | 63 471 1249 267 207 Spaces Moved 1219 | 45 252 672 190 60 Core 5 | 5 . . . . Treads . | . . . . . Legs 554 | 40 252 202 . 60 Wheels 660 | . . 470 190 . Hover . | . . . . . Flight . | . . . . . Fastest Speed 50 | 50 120 110 140 260 Average Speed 165 | 112 158 169 140 264 Slowest Speed 470 | 120 260 470 140 400 Overloaded Moves . | . . . . . Propulsion Burnouts . | . . . . . Robots Hopped . | . . . . . Cave-ins Triggered . | . . . . . Exploration Rate (%) 43 | 3 46 93 58 17 Regions Visited 4 Branch Regions 3 Pre-discovered Areas 1 | . . . 1 . Known Exits Taken . | . . . . . Unknown Exits Taken 4 | 1 1 1 1 . Scrap Searched 2 | . . 1 . 1 Spaces Dug . | . . . . . Terrain Destroyed 78 | . . 36 . 42 Melee . | . . . . . Projectile . | . . . . . AOE 78 | . . 36 . 42 Terrain Rammed . | . . . . . Walls Destroyed . | . . . . . Machines Disabled . | . . . . . Actions | -11 -10 -10 -10 -9 --------- Run | Yrd Mat Min Exi Min Total 1380 | 57 296 752 190 85 Wait 67 | . 16 51 . . Move 1215 | 44 251 671 189 60 Hop . | . . . . . Pick Up 25 | 7 10 4 . 4 Fast Attach . | . . . . . Attach 14 | 6 1 1 . 6 Detach . | . . . . . Swap 12 | . 2 7 1 2 Drop 3 | . 2 1 . . Fire 44 | . 14 17 . 13 Melee . | . . . . . Ram . | . . . . . Kick . | . . . . . Crush . | . . . . . Escape Stasis . | . . . . . Rewire . | . . . . . Trap . | . . . . . Miscellaneous . | . . . . . Route ------- -11/Scrapyard -10/Materials (discovered 2 exits: [*Mat] / [*Min]) -10/Mines (discovered 2 exits: [*Mat] / *Exi) -10/Exiles -9/Mines History --------- Turn | Location | Event 8 | -11/Scrapyard | Discovered new exit (range 14) 64 | -11/Scrapyard | Entered Materials 178 | -10/Materials | Discovered new exit (range 8) 253 | -10/Materials | Discovered new exit (range 12) 303 | -10/Materials | Build established: Mutant 535 | -10/Materials | Entered Mines 564 | -10/Mines | Learned Materials terminal intel 711 | -10/Mines | YI-UF0 nonchalantly dropped a Grenade Launcher on the ground 1028 | -10/Mines | Discovered new exit (range 9) 1071 | -10/Mines | Found a hidden stash of uninstalled traps 1237 | -10/Mines | Assisted by bots powering up and referring to "LRC-V3" 1272 | -10/Mines | Met a Derelict testing a Signal Generator 1422 | -10/Mines | Lost 3 allies 1431 | -10/Mines | Destroyed YI-UF0 1777 | -10/Mines | Deemed a non-threat by the Exiles lab entrance 1779 | -10/Mines | Discovered new exit (range 5) 1784 | -10/Mines | Entered Exiles 1784 | -10/Exiles | Accompanied by 1 ally 1817 | -10/Exiles | Met 8R-AWN 1842 | -10/Exiles | Met EX-HEX 1888 | -10/Exiles | Met EX-BIN 1969 | -10/Exiles | Met EX-DEC 1978 | -10/Exiles | Learned location of Zion (-7) 2031 | -10/Exiles | Discovered new exit (range 14) 2051 | -10/Exiles | Entered Mines 2051 | -9/Mines | Accompanied by 1 ally 2070 | -9/Mines | Met a Derelict bent on vengeance 2118 | -9/Mines | Learned Materials stockpile data 2205 | -9/Mines | Assembled infested the area 2210 | -9/Mines | Assisted by a Guerilla fighting off Assembled 2240 | -9/Mines | Core integrity fell below 50% 2246 | -9/Mines | Core integrity fell below 20% 2258 | -9/Mines | Self-destructed Last Messages --------------- 02239_ U-05 Engineer lays Concrete. 02240_ U-05 Engineer builds a Wall. 02242_ U-05 Engineer suffers critical hit (Burn). 02242_ U-05 Engineer destroyed. 02242_ Imp. Aluminum Leg destroyed. 02242_ Destroyed Imp. Aluminum Leg. 02242_ Grenade Launcher destroyed. 02242_ Destroyed Grenade Launcher. 02242_ Knocked back. 02243_ Overheating: Energy bleed (-36). 02247_ as-03748 suffers critical hit (Burn). 02247_ as-03748 destroyed. 02249_ Overheating: Matter decay (-28). 02251_ Ion Engine destroyed. 02253_ The unstable cave ceiling collapses. 02253_ as-06423 suffers critical hit (Burn). 02254_ Beamcaster broken. 02254_ Overheating: Short circuit. 02254_ R-06 Scavenger destroyed. Map ----- +----------------------------------------------------+ | | | | | | | | | | | | | | | | | | | | | ????????????????????????????????????????????? | | ????????????????????????????????????????????? | | ????????????????????????????????????????????? | | ????????????????????????????????????????????? | | ???????????????????????####?????????????????? | | ????????????????????#### ###??????????????? | | ????????????????????# ##########?????? | | ????????????????????# #?????? | | ????????????????????## """" ####### #?????? | | ?????????????????????# """" ##?????# #?????? | | ?????????????????????# """" ##??????# #?????? | | ?????????????????????# ######??# #?????? | | ?????????????????????## #??# #?????? | | ??????????????????????## ##### #??# #?????? | | ???????????????????????# #####?????# #?????? | | ??????????????????????## @ #?????#!#?????? | | ?????????????????????## = ## #?????#%#?????? | | ?????????????????????# % #????????#!#?????? | | ?????????????????????# !| ## ## #### ####??? | | ????????????????????# !% # #??? | | ??????????????????? ! ############# #??? | | ?????????????????# #??????????# #??? | | ?????????????????# #?????###### #??? | | ????????????????# #?????# ###? | | ????????????????# #????## [%= #? | | ???????????????# # a #????# % #? | | ???????????????# * ###????# [ % #? | | ???????????????## !a #?????# #? | | ???????????????? a # #?????## """#? | | ???????????????# # #?##??????# """#? | | ?????????????????##### ??????????# """#? | | ?????????????????????# ??????????# #? | | ?????????????????????# ??????????##########? | | ?????????????????????? ????????????????????? | | ????????????????????????????????????????????? | | ????????????????????????????????????????????? | | ????????????????????????????????????????????? | | ????????????????????????????????????????????? | | ????????????????????????????????????????????? | | ????????????????????????????????????????????? | +----------------------------------------------------+ Best States ------------- Heat Dissipation 25 Energy Generation 10 Energy Capacity 250 Matter Stores 300 Matter Capacity 300 Sight Range 16 Terrain Scan Density 10 Evasion (%) 55 Targeting Accuracy 5 Item Schematics ----------------- None Robot Schematics ------------------ None Fabricated ------------ Nothing Alien Tech Used ----------------- None Achievements -------------- None Challenges ------------ None Game ------ Seed WeaponDiametricProtection Manual? 0 Play Time 00:13:05 Cumulative 61.8 hours Start 2024.04.09 @ 11:46:48 End 2024.04.09 @ 11:58:45 Sessions 1 Manual Loads 0 Difficulty Rogue Special Mode None Game No. 79 Rogue 79 Adventurer 0 Explorer 0 Win Type - Total 1 Types 1/0/0/0/0/0/0/0/0 Lore% 34 Gallery% 36 Achievement% 38 Wizard Run 0 Options --------- Layout 1 ASCII 0 Keyboard 0 Movement Mouse Keybinds 0 Fullscreen 2 Font 32/Smallcaps Map View 50x40 Zoom Use 0% Tactical HUD 1 Map Filters NONE Filters NONE Steam 1 RUN: 39fdd23e-2a98-4bb1-af65-c7155443bbe7